[Event "St Maxime-02"]
[Site "St Maxime"]
[Date "1982.05.??"]
[Round "7"]
[White "Giffard, Nicolas"]
[Black "Hulak, Krunoslav"]
[Result "1-0"]
[ECO "A65"]
[WhiteElo "2345"]
[BlackElo "2490"]
[Annotator "Giffard,N"]
[PlyCount "89"]
[EventDate "1982.05.??"]
[EventType "tourn"]
[EventRounds "13"]
[EventCountry "FRA"]
[EventCategory "7"]
[SourceTitle "EXT 2018"]
[Source "ChessBase"]
[SourceDate "2017.10.13"]
[SourceVersion "1"]
[SourceVersionDate "2017.10.13"]
[SourceQuality "1"]
[TimeControl "40/9000:16/5400:0"]

1. d4 Nf6 2. c4 c5 3. d5 e6 4. Nc3 exd5 5. cxd5 d6 6. e4 g6 7. Bd3 Bg7 8. Nge2
O-O 9. O-O b6 10. h3 Ba6 11. Bg5 Qc7 12. Ng3 (12. Kh1 Bxd3 13. Qxd3 c4 14. Qd2
Nbd7 15. f4 b5 16. e5 dxe5 17. fxe5 Qxe5 18. Bf4 Qf5 19. Ng3 Qd3 20. Qf2 Nxd5
21. Rad1 Nxf4 22. Nxb5 a6 23. Nc7 Rac8 24. Rxd3 Nxd3 25. Qa7 N7e5 26. Nd5 Rcd8
{Haik,A (2440)-Hulak,K (2490)/St Maxime 1982/EXT 2004/0-1 (47)}) 12... Bxd3 13.
Qxd3 Nbd7 14. Qd2 a6 15. Bh6 b5 16. Rae1 Rae8 17. Kh1 c4 18. a3 Ne5 19. Bxg7
Kxg7 20. Re2 Nfd7 21. f4 Nd3 22. f5 Qd8 23. Re3 Qh4 24. Kg1 Kh8 25. b3 N7e5 26.
b4 Rg8 27. f6 Nd7 28. Ref3 N3e5 29. Re3 Nxf6 30. Qd4 Ra8 31. Nce2 Kg7 32. Rf4
Qh6 33. Ref3 $3 {[%cal Gd4g7]} Nxf3+ 34. Rxf3 Qg5 $2 (34... Qh4 {[%cal Gh4f6]})
35. Nf5+ $40 {[%csl Rf6,Rg5,Rg7][%cal Gf3g3]} Kf8 36. Rg3 gxf5 37. Rxg5 Nxe4
38. Rxf5 Re8 39. Nf4 Ng3 40. Rf6 Re1+ 41. Kf2 Rf1+ 42. Ke3 Ke7 43. Kd2 Rg5 44.
Kc2 Re5 45. Rxd6 1-0

[Event "Tata Steel-B 80th"]
[Site "Wijk aan Zee"]
[Date "2018.01.21"]
[Round "8"]
[White "Korobov, Anton"]
[Black "Amin, Bassem"]
[Result "0-1"]
[ECO "A65"]
[WhiteElo "2652"]
[BlackElo "2693"]
[Annotator "Golubev,M"]
[PlyCount "86"]
[EventDate "2018.01.13"]
[EventType "tourn"]
[EventRounds "13"]
[EventCountry "NED"]
[EventCategory "15"]
[SourceTitle "CBM 183"]
[Source "ChessBase"]
[SourceDate "2018.03.14"]
[SourceVersion "1"]
[SourceVersionDate "2018.03.14"]
[SourceQuality "1"]
[TimeControl "40/6000+30:20/3000+30:900+30"]

1. d4 {[%emt 0:00:00]} Nf6 {[%emt 0:00:48]} 2. c4 {[%emt 0:00:00]} g6 {[%emt 0:
00:06]} 3. Nc3 {[%emt 0:00:00]} Bg7 {[%emt 0:00:08]} 4. e4 {[%emt 0:00:00]} d6
{[%emt 0:00:06]} 5. f3 {[%emt 0:00:17]} O-O 6. Bg5 {[%emt 0:00:19]} c5 {
[%emt 0:01:19]} 7. d5 {[%emt 0:00:17]} h6 {[%emt 0:02:16]} 8. Be3 {[%emt 0:00:
27]} e6 {[%emt 0:00:07]} 9. Qd2 {[%emt 0:00:27]} exd5 {[%emt 0:00:29]} 10. cxd5
{[%emt 0:00:07] These extremely complex positions formally belong to the
Modern Benoni but are more important for the King's Indian (where Black's plan
...c5 is considered nowadays to be the most principled answer to the Sämisch
System) and they more often arise, as in the featured game, through the King's
Indian move order.} a6 {[%emt 0:00:36] Other important options are ...Re8 and .
..h5.} 11. a4 {[%emt 0:00:43]} (11. Bxh6 {is answered by} Nxe4 $1 {followed by
...Qh4+.}) 11... h5 {[%emt 0:00:09] Now the fight intersects also with lines
where White plays Be3 (instead of Bg5, Be3) while Black, respectively, plays ..
.h7-h5 in one move (instead of ...h6, ...h5) . Such nuances do not make the
opening preparation easier but players have to know them.} ({Note that
Kasparov in his games preferred} 11... Re8 12. Nge2 ({less common is} 12. Be2
$5) 12... Nbd7) ({While an immediate} 11... Nbd7 $6 {allows} 12. Nh3 $1) 12.
Nge2 {[%emt 0:07:26] Deviations for White include 12.a5!? and 12.Bh6!?.} Nbd7
$1 {[%emt 0:00:41]} 13. Nc1 {[%emt 0:05:36]} ({White has to rearrange his
minor pieces. Another quite often played move is} 13. Nd1 {planning Nec3 and
Nf2.}) ({One more option is} 13. Nf4) 13... Ne5 {[%emt 0:13:11]} 14. Be2 {
[%emt 0:01:04]} Nh7 {[%emt 0:00:43] Again Black had a choice, between this
move and 14...Re8, 14...h4.} (14... Rb8 15. O-O Qe8 16. Rb1 Bd7 17. b4 cxb4 18.
Rxb4 b5 19. axb5 axb5 20. N1a2 Nc4 21. Bxc4 bxc4 22. Rxc4 h4 23. h3 Nh5 24. Re1
Rb3 25. Nc1 Ra3 26. Bd4 Be5 27. N1e2 Qe7 28. f4 Bxd4+ 29. Qxd4 Rfa8 30. e5 Re8
31. Nc1 Bf5 32. Qf2 Ng3 33. Nb5 Ra6 34. Nb3 Bd3 35. Rc7 Qd8 36. Nxd6 Qxc7 37.
Nxe8 Qc3 38. Nc5 Ra2 39. Nf6+ Kh8 40. Qe3 Qc2 41. Qf3 Qxc5+ 42. Kh2 Qc3 43. Rb1
Rxg2+ 44. Qxg2 {Milanovic,D (2507)-Kislinsky,A (2451) Belgrade 2016 1/2-1/2})
15. h3 {[%emt 0:18:35] Still not new, but at least little explored. White
makes sure that, after the possible further f4, the g4-square will not be
available for the black knight. Still, White is not really planning to play f4
on the next move (for example, after ...Re8), because his e4 pawn will become
vulnerable after the retreat ...Nd7.} f5 $5 {[%emt 0:01:43]} 16. f4 {[%emt 0:
03:21] But now it's a different story. Or, at least, Korobov so decided.} Nf7 {
[%emt 0:00:28]} 17. exf5 $146 {[%emt 0:06:17]} ({Previously,} 17. Nd3 $5 Re8
18. Nf2 {had been seen in practice.} Qe7 19. g4 Nf6 20. Rg1 fxe4 21. O-O-O b5
22. axb5 axb5 23. Bxb5 Bd7 24. Bxd7 Qxd7 25. gxh5 gxh5 26. Rg6 Ra1+ 27. Kc2
Rxd1 28. Qxd1 Nh6 29. Qg1 Kh7 30. Rg5 Nf5 31. Nfd1 Bh6 32. Rg6 Qf7 33. Rg2 Nxd5
34. Nxd5 Qxd5 35. Rd2 Qc4+ 36. Kb1 Rb8 37. Qf2 Rb3 38. Qg1 Rd3 {0-1 (38)
Yakubboev,N (2131)-Alikulov,E (2212) Tashkent 2014}) 17... gxf5 $6 {[%emt 0:00:
59]} ({After} 17... Bxf5 $1 {Amin possibly disliked} 18. g4 {otherwise it's
hard to understand his decision. But Black is apparently doing very well
because White is underdeveloped:} Bd7 {and, for example,} 19. Nd3 Qe7 20. O-O-O
$2 {just loses a piece:} Rae8 21. Bf2 Bxc3 $19 {. While after the game move
White is at least somewhat better.}) 18. O-O {[%emt 0:00:36]} Nf6 {[%emt 0:00:
55]} 19. Bf2 {[%emt 0:02:35]} Bd7 {[%emt 0:00:48]} 20. a5 {[%emt 0:05:17]} Bb5
$6 {[%emt 0:10:36]} ({Black could have tried} 20... Nh8 21. Bh4 Ng6 22. Bg5 ({
White can also accept the pawn sacrifice,} 22. Bxf6 $5 Qxf6 23. Bxh5) 22... h4)
21. Re1 {[%emt 0:04:37]} Re8 {[%emt 0:05:31]} 22. Qc2 {[%emt 0:05:43]} Qd7 {
[%emt 0:03:46]} 23. Bf3 {[%emt 0:03:20]} Rxe1+ {[%emt 0:02:09]} 24. Bxe1 {
[%emt 0:00:02]} Re8 {[%emt 0:16:05]} 25. N1e2 {[%emt 0:01:30]} Ng4 $5 {[%emt 0:
03:38] In a worse for him position Black is trying to complicate matters.} 26.
Nxb5 $5 {[%emt 0:05:10]} axb5 {[%emt 0:00:51]} ({It was worth considering} 
26... Ne3 $5) 27. Bc3 $5 {[%emt 0:03:11]} Nfh6 $6 {[%emt 0:24:08]} ({Again} 
27... Ne3 {could have been a better chance.}) 28. Ng3 $1 {[%emt 0:04:03]} Bxc3
{[%emt 0:05:22]} 29. Qxc3 {[%emt 0:06:30]} b4 {[%emt 0:04:26]} 30. Qd2 {
[%emt 0:00:44]} h4 {[%emt 0:01:21]} 31. hxg4 $2 {[%emt 0:05:29] After Black's
on principle wrong decision on the 17th move Korobov gradually outplayed his
opponent, but now White goes astray, underestimating the dangers for his king,}
({The correct way was a calm} 31. Nf1 $1 {and if} Nf6 32. Qf2 {winning the
h4-pawn.}) 31... hxg3 {[%emt 0:02:08]} 32. g5 {[%emt 0:00:20]} Qg7 $1 {[%emt 0:
00:55]} 33. Bh5 $2 {[%emt 0:17:42]} ({White still could have achieved a draw
with precise play:} 33. Kf1 $1 {(planning Re1, which could not have been
played immediately because of 33...Qd4+!!)} Ng4 34. Bxg4 fxg4 35. Re1 $1 Rf8 $1
36. Qe3 Qf7 $5 37. Qe6 $1 Qxe6 38. dxe6 Rxf4+ 39. Ke2 Kf8 40. Ke3 $1 Rf5 ({or} 
40... Rf2 41. Kd3 $1 Ke7 {and now} 42. Re4 {or 42.Kc4}) 41. Rh1 $1 {planning
Rh7 or} Kg7 42. Rd1 $1 {and after} d5 {another pawn can be attacked:} 43. Rc1)
33... Nf7 $1 {[%emt 0:00:14] The g3-pawn is like a splinter in White's
position. Black's main threat now is ...Qh8! and White should do something
about this...} 34. Qd3 {[%emt 0:00:05]} (34. Re1 {still loses to} Qd4+ $1)
34... Qxb2 $1 {[%emt 0:04:10]} 35. Bxf7+ {[%emt 0:00:02]} ({White is lost also
after} 35. Rf1 Qh8 $1 36. Bxf7+ Kxf7 $1 37. Qxf5+ Ke7 $1 38. Qe6+ ({or} 38.
Re1+ Kd8 39. Rxe8+ Qxe8 40. Kf1 Qe3 41. Qf6+ Kc7 {and wins}) 38... Kd8 39.
Qxd6+ Kc8 40. Qxc5+ Kb8 $19 {and then, for example,} 41. Rc1 b3 42. d6 b2 43.
Rb1 Qh2+ 44. Kf1 Qh1+ 45. Qg1 Qh7 46. Rxb2 Qd3+) 35... Kg7 $1 {[%emt 0:03:06]}
({But not} 35... Kxf7 $2 36. Qxf5+ $11 {with a draw: if} Kg7 37. Qd7+) 36. Bxe8
{[%emt 0:00:47]} ({Or} 36. Rf1 Re1 $1 37. Qxg3 Qd4+ 38. Qf2 ({if} 38. Kh2 Rxf1)
38... Qxf2+ 39. Kxf2 Rxf1+ 40. Kxf1 b3 $1 $19 {and the black pawn is
unstoppable:} 41. Be6 Kg6 42. g4 fxg4) 36... Qxa1+ {[%emt 0:00:06]} 37. Qf1 {
[%emt 0:00:01]} Qd4+ {[%emt 0:00:06]} 38. Kh1 {[%emt 0:00:09]} b3 {[%emt 0:02:
05]} ({There were other winning moves as well. For example,} 38... Kf8) 39. Qe1
{[%emt 0:01:35]} Kf8 $1 {[%emt 0:00:44]} 40. Bh5 {[%emt 0:00:00]} {White
resigned because the variations are pretty simple:} Qe4 {[%emt 0:00:35]} 41.
Qxe4 ({or} 41. Qa1 b2) 41... fxe4 42. Bd1 ({or} 42. Bg6 e3 43. Bd3 b2) 42... b2
43. Bc2 e3 {...followed by 44...e2.} 0-1

[Event "Metz op 31th"]
[Site "Metz"]
[Date "2013.04.25"]
[Round "9"]
[White "Maiorov, Nikita"]
[Black "Sanikidze, Tornike"]
[Result "1-0"]
[ECO "A65"]
[WhiteElo "2535"]
[BlackElo "2559"]
[Annotator "Metz Alekhine/Primel,D"]
[PlyCount "119"]
[EventDate "2013.04.20"]
[EventType "swiss"]
[EventRounds "9"]
[EventCountry "FRA"]
[SourceTitle "EXT 2016"]
[Source "ChessBase"]
[SourceDate "2015.10.08"]
[SourceVersion "1"]
[SourceVersionDate "2015.10.08"]
[SourceQuality "1"]
[TimeControl "40/5400:1800+30"]
[WhiteClock "1:30:00"]
[BlackClock "1:30:00"]

1. d4 Nf6 2. c4 c5 3. d5 e6 4. Nc3 exd5 5. cxd5 d6 6. e4 a6 7. a4 g6 8. Nge2 $5
{[%cal Ge2g3] Une ligne secondaire mais assez agressive pour une partie à
enjeu car les deux adversaires jouaient pour les premiers prix dans cette
dernière ronde.} (8. Bd3) (8. h3) 8... Bg7 9. Ng3 O-O {h5 parait moins risqué
} (9... h5 $142 {[%cal Gh5h4]} 10. Be2 Qe7 {Dreev,A (2688)-Minasian,A (2557)
Moscow Aeroflot op-A 2009 (6) 0-1} (10... O-O)) 10. Be2 Nbd7 (10... h5 {
[%cal Gh5h4] Un peu curieux après le oo} 11. Bg5 Qc7 {Maiorov,N (2552)
-Marholev,D (2383) Cappelle op 28th 2012 (7) 1-0} (11... Qb6)) 11. O-O {
91 Les blancs ont joué à tempo l'ouverture} Re8 (11... Rb8 {[%cal Gb7b5]} 12.
f3 Ne8 $5 {[%cal Ge8c7,Gb7b5]} 13. Be3 Nc7 $132 {Yevseev,D (2580)-Khalifman,A 
(2702) RUS-chT Togliatti 2003 (4) 0-1}) 12. f3 h5 13. Bg5 $1 $14 Qb6 (13... Qa5
14. Qd2 Nh7 15. Bh6 Bd4+ 16. Be3 h4 $132 {Magerramov,E (2440)-Veingold,A (2430)
Tashkent 1983 0-1}) 14. Qd2 {80 Joué toujours aussi rapidement mais la
préparation des Blancs s'arrête au coup suivant.} Qb4 {[%cal Gb4d4,Gd4g1]}
15. a5 $5 $146 {[%csl Rb4][%cal Ga1a4] 54} (15. Kh1 Nh7 16. Bh4 {Rustemov,A 
(2550)-Isupov,V (2375) RUS-chT Orel 1997 1-0}) (15. Rfd1 Nh7 16. Bf4 Qd4+)
15... Nh7 $1 {[%cal Gb4d4,Gg7d4,Gh7g5] Un coup multifonction qui pare la
menace de gain de la Q par Ra4} 16. Be3 b5 17. axb6 Nxb6 $132 {[%cal Gb6c4]} (
17... h4 $5 18. Nb5 $1 {[%csl Ra8,Re8][%cal Gb5c7]} Qxd2 19. Bxd2 Rd8 20. Nh1
Nxb6) 18. Qc2 Rb8 19. Rfb1 $1 {[%cal Ga1a4,Gb2b4] Préparant la poussée b4
qui devrait donner l'initiative aux Blancs} Nc4 20. Bxc4 Qxc4 21. Nf1 Qb4 22.
Nd2 g5 {Comme souvent dans une Benoni, les Noirs doivent jouer de manière
active mais l'aile-roi est trés affaiblie.} (22... f5 $5 {Egalement trés
risqué mais probablement davantage dans l'esprit de la position.}) 23. Ra4 $1
Qb7 24. b4 $36 cxb4 25. Na2 $1 (25. Raxb4 $143 Qxb4 $1 26. Rxb4 Rxb4) 25... Bd7
$1 26. Raxb4 Bb5 $132 {La paire de B des Noirs est trés active} 27. Nb3 $1 {
[%cal Gb3d4,Gd4b5,Gd4c6]} f5 $1 {[%csl Rd5][%cal Ge8e3]} 28. Nd4 fxe4 29. fxe4
Rbc8 30. Nc3 {29 Comme souvent, le bielorusse évite d'être en zeitnot} Qf7 (
30... Qc7 $5 {[%csl Rc3] Semblait plus logique} 31. Rc1 Qc5 {[%cal Gc5b4,Gc8c7,
Ge8c8]}) 31. Qd2 Nf6 32. Ndxb5 axb5 33. Nxb5 Rcd8 34. Bxg5 {Espérant clouer
le N...} Rxe4 $1 35. Rf1 Rxb4 36. Qxb4 Rb8 37. Bxf6 Bxf6 38. Qc4 Qe7 39. Qd3
Be5 $2 $138 (39... Bg7 $142) 40. Qg6+ Bg7 41. Nxd6 $40 {[%cal Gf1f7]} Rb6 42.
Qe8+ Qxe8 43. Nxe8 Bd4+ 44. Kh1 {Les compensations des Noirs sont
insuffisantes car après la poussée g2g3, le K Blanc peut monter assez
facilement alors que le K Noir est coupé.} Be5 (44... Rb8 45. Nd6 Rd8 46. Rd1
Rxd6 47. Rxd4 Kf7 {[%csl Rh1][%cal Gf7f6,Gf6e5]} 48. g3 Kf6 49. Kg2 Ke5 50. Rh4
Rh6 51. g4) 45. g3 h4 46. gxh4 $8 (46. g4 $2 h3 $1 {[%csl Rh1,Rh2][%cal Gb6b2,
Gb2h2]}) 46... Rb4 47. Rf5 Rb1+ 48. Kg2 Rb2+ 49. Kf3 Bxh2 50. d6 $18 {[%csl
Gf5,Rg8]} Bg1 51. d7 Bb6 52. h5 Bd8 53. Ke4 Rd2 54. Rd5 Re2+ 55. Kf5 Re7 56.
Rd6 Rf7+ 57. Kg6 Rf1 58. Nf6+ Bxf6 59. Rxf6 Rd1 {(=) Il n'y a que la feuille
du géorgien qui mentionne la proposition de nulle} 60. Re6 {[%csl Gg6,Rg8]} (
60. Re6 Rg1+ 61. Kf6 Rf1+ 62. Ke7 {[%cal Gd7d8]}) 1-0

[Event "Sautron op 14th"]
[Site "Sautron"]
[Date "2014.10.25"]
[Round "8"]
[White "Terrieux, Kevin"]
[Black "Loiseau, Quentin"]
[Result "1-0"]
[ECO "A65"]
[WhiteElo "2409"]
[BlackElo "2354"]
[Annotator "RR"]
[PlyCount "67"]
[EventDate "2014.10.26"]
[EventType "swiss"]
[EventRounds "9"]
[EventCountry "FRA"]
[SourceTitle "EXT 2015"]
[Source "ChessBase"]
[SourceDate "2014.11.20"]
[SourceVersion "1"]
[SourceVersionDate "2014.11.20"]
[SourceQuality "1"]
[TimeControl "40/5400+30:1800+30"]
[WhiteClock "0:13:00"]
[BlackClock "0:01:35"]

1. d4 {[%emt 0:00:00]} Nf6 {[%emt 0:00:00]} 2. c4 {[%emt 0:00:10]} c5 {[%emt 0:
00:11]} 3. d5 {[%emt 0:00:20]} e6 {[%emt 0:00:08]} 4. Nc3 {[%emt 0:00:13]} exd5
{[%emt 0:00:13]} 5. cxd5 {[%emt 0:00:06]} d6 {[%emt 0:00:08]} 6. e4 {[%emt 0:
00:14]} g6 {[%emt 0:00:13]} 7. Nge2 {[%emt 0:00:24] Une ligne secondaire} Bg7 {
[%emt 0:00:20]} 8. Ng3 {[%emt 0:00:14]} O-O {[%emt 0:00:38]} (8... a6 9. a4 O-O
10. f3 Nbd7 (10... Nh5 11. Nxh5 gxh5 12. Be2 Qh4+ 13. g3 Qe7 14. h4 {Giri,A 
(2768)-Gelfand,B (2748) Tashkent FIDE GP 2014 (1) 1/2} (14. O-O Bh3 {
Martinovic inf 122}))) 9. Be2 {[%emt 0:00:18]} b6 {[%emt 0:01:50]} 10. O-O {
[%emt 0:06:02]} Ba6 {[%emt 0:00:23]} 11. Bg5 {[%emt 0:01:39]} (11. Bf4 {
[%csl Rd6]} Bxe2 12. Qxe2 a6 13. a4 Re8 14. Qd2 Qc7 15. Rfc1 Nbd7 16. Rab1 Ne5
17. b3 Qb7 18. Bh6 Bh8 19. Qe2 Rab8 20. f3 b5 21. axb5 axb5 22. Nf1 b4 23. Nd1
Ra8 24. Nde3 Qa6 25. Rc2 Qxe2 26. Rxe2 Re7 27. h3 Bg7 28. Bxg7 Kxg7 29. Nd2 Ra2
30. Rf2 Nd3 31. Re2 Nf4 32. Rf2 Nd3 33. Re2 Nh5 34. Nec4 Nhf4 35. Re3 Ne5 36.
Nb2 g5 37. g3 Nfd3 38. Ndc4 Nxb2 39. Nxb2 Rea7 40. f4 gxf4 {Gasanov,E (2514)
-Yilmaz,M (2581) Kocaeli 2014 1-0 (66)}) 11... h6 {[%emt 0:09:49]} 12. Bf4 {
[%emt 0:00:36]} Re8 $146 {[%emt 0:09:15]} (12... Bxe2 13. Qxe2 Qe7 14. Nb5 Ne8
15. Qd2 Kh7 16. Na3 Nd7 17. Rac1 Ne5 18. Rfe1 Nf6 19. Qe2 Rfe8 20. h3 Rab8 21.
Be3 h5 22. Bg5 Bh6 23. Bxh6 Kxh6 24. Qd2+ Kg7 25. Nh1 Ned7 26. f3 b5 27. Nf2 h4
{1/2-1/2 (27) Runting,T (2442)-Ghinda,M ICCF email 2007}) 13. f3 {[%emt 0:04:
32]} Bxe2 {[%emt 0:07:44]} 14. Qxe2 {[%emt 0:03:04]} h5 $5 {[%emt 0:03:14]
[%cal Gh5h4]} 15. Bg5 {[%emt 0:03:14]} Qd7 {[%emt 0:02:10]} (15... Nbd7 {
Plus naturel mais le clouage du Nf6 est pénible}) 16. Qd2 $14 {[%emt 0:28:19]
Joué après une longue réflexion d'une 1/2 h} Na6 {[%emt 0:10:14]} 17. f4 {
[%emt 0:08:41][%cal Ga1e1,Ge4e5]} Ng4 $6 {[%emt 0:05:13] Les Blancs controlent
bien la case "f2"} 18. h3 {[%emt 0:03:24]} Bd4+ {[%emt 0:02:03]} 19. Kh1 $16 {
[%emt 0:00:23]} f6 {[%emt 0:15:00] L'idée sous-jacente au coup Ng4 et comme
souvent dans une Benoni, les Noirs pêchent en eaux troubles} 20. Bh4 {[%emt 0:
01:49]} (20. f5 $5 fxg5 21. hxg4 {[%cal Gg4h5]} h4 22. Nge2 Qg7 $13) 20... Re7
{[%emt 0:21:07]} 21. Rf3 {[%emt 0:04:02]} (21. Rae1 Rae8 (21... Rf8 22. e5 dxe5
23. f5 $44 g5 24. Nxh5 gxh4 25. Ne4 {[%csl Ge4]}) 22. e5 $1 dxe5 23. f5 {
[%csl Rg6,Rh5]} g5 24. Nce4 $40 {[%csl Rd7,Rf6]}) 21... b5 {[%emt 0:04:54]} 22.
Raf1 {[%emt 0:01:20]} Rae8 {[%emt 0:05:29]} 23. Nce2 {[%emt 0:00:24] Gagne du
matériel mais le sacrifice e4e5 était thématique} (23. e5 $1 $40 {[%csl Ge4]
[%cal Gh4e7]} dxe5 24. fxe5 fxe5 25. Nge4 $18 {[%csl Rf6]}) 23... Rxe4 {
[%emt 0:00:28]} 24. Nxe4 {[%emt 0:00:21]} Rxe4 {[%emt 0:00:01]} 25. hxg4 {
[%emt 0:02:35]} hxg4 {[%emt 0:00:58]} 26. Rd3 $18 {[%emt 0:01:19]} Qh7 {
[%emt 0:00:36]} 27. g3 {[%emt 0:00:40]} Nb4 {[%emt 0:00:34]} 28. Nxd4 {[%emt 0:
09:13]} Nxd3 {[%emt 0:00:18]} 29. Nxb5 {[%emt 0:00:25]} g5 {[%emt 0:00:40]} 30.
fxg5 {[%emt 0:05:32]} Re5 {[%emt 0:00:00]} 31. gxf6 {[%emt 0:01:47]} Qe4+ {
[%emt 0:00:21]} 32. Kg1 {[%emt 0:01:30]} Rh5 {[%emt 0:00:42]} 33. f7+ {[%emt 0:
00:34]} Kf8 {[%emt 0:00:01]} 34. Qxd3 $1 {[%emt 0:00:36]} (34. Qxd3 Qxd3 35.
Be7+ Kxe7 36. f8=Q+) 1-0